fUST/lending_fUST_20240227
["ID","MTS","AMOUNT","RATE_DAILY","PERIOD"]
[315392744,1709005839913,-746.12,0.00019451,2]
[315392745,1709005839925,-746.12,0.00019451,2]
[315392746,1709005839938,-746.12,0.00019451,2]
[315392747,1709005839950,-500.0,0.00019452,2]
[315392748,1709005839965,-207.61272348,0.00019452,2]
[315392749,1709005839977,-500.0,0.00019452,2]
[315392750,1709005839989,-613.32,0.00019452,2]
[315392751,1709005839999,-1021.92,0.00019452,2]
[315392752,1709005840009,-316.02608932,0.00019452,2]
[315392754,1709005840020,-490.0,0.00019452,2]
[315392756,1709005840030,-500.0,0.00019452,2]
[315392757,1709005840042,-566.07734059,0.00019452,2]
[315392758,1709005840054,-1168.45,0.00019452,2]
[315392759,1709005840066,-508.29,0.00019452,2]
[315392760,1709005840076,-500.0,0.00019452,2]
[315392761,1709005840089,-1815.24,0.00019452,2]
[315392762,1709005840100,-634.77,0.00019452,2]
[315392763,1709005840111,-500.0,0.00019452,2]
[315392764,1709005840121,-287.83353781,0.00019452,2]
[315392765,1709005840131,-500.0,0.00019452,2]
[315392766,1709005840141,-500.0,0.00019452,2]
[315392767,1709005840152,-500.0,0.00019452,2]
[315392768,1709005840166,-500.0,0.00019452,2]
[315392769,1709005840179,-500.0,0.00019452,2]
[315392770,1709005840191,-1080.31,0.00019452,2]
[315392771,1709005840202,-500.0,0.00019452,2]
[315392772,1709005840214,-500.0,0.00019452,2]
[315392773,1709005840226,-500.0,0.00019452,2]
[315392774,1709005840239,-1726.24,0.00019452,2]
[315392775,1709005840251,-379.01528578,0.00019452,2]
[315392776,1709005840262,-379.90449438,0.00019452,2]
[315392777,1709005840274,-500.86552404,0.00019452,2]
[315392778,1709005840286,-500.0,0.00019452,2]
[315392779,1709005840297,-500.0,0.00019452,2]
[315392780,1709005840308,-500.0,0.00019452,2]
[315392781,1709005840320,-500.0,0.00019452,2]
[315392782,1709005840331,-212.44196053,0.00019452,2]
[315392783,1709005840343,-1398.22,0.00019452,2]
[315392784,1709005840356,-501.378692,0.00019452,2]
[315392785,1709005840369,-500.0,0.00019452,2]
[315392786,1709005840380,-500.0,0.00019452,2]
[315392787,1709005840392,-503.15205362,0.00019452,2]
[315392788,1709005840403,-503.26423189,0.00019452,2]
[315392789,1709005840413,-500.0,0.00019452,2]
[315392790,1709005840425,-501.9561912,0.00019452,2]
[315392791,1709005840435,-503.49687487,0.00019452,2]
[315392792,1709005840446,-500.0,0.00019452,2]
[315392793,1709005840457,-500.0,0.00019452,2]
[315392794,1709005840468,-570.5920491,0.00019452,2]
[315392795,1709005840478,-1219.33,0.00019452,2]
[315392796,1709005840489,-500.0,0.00019452,2]
[315392797,1709005840500,-500.0,0.00019452,2]
[315392798,1709005840510,-500.0,0.00019452,2]
[315392799,1709005840522,-500.99882083,0.00019452,2]
[315392800,1709005840533,-1245.29,0.00019452,2]
[315392801,1709005840544,-501.83788764,0.00019452,2]
[315392802,1709005840555,-500.0,0.00019452,2]
[315392803,1709005840566,-500.90735407,0.00019452,2]
[315392804,1709005840576,-500.0,0.00019452,2]
[315392805,1709005840587,-501.19562815,0.00019452,2]
[315392806,1709005840598,-476.05935812,0.00019452,2]
[315392807,1709005840609,-500.0,0.00019452,2]
[315392808,1709005840620,-502.27288732,0.00019452,2]
[315392809,1709005840631,-500.0,0.00019452,2]
[315392810,1709005840640,-500.0,0.00019452,2]
[315392811,1709005840651,-816.34,0.00019452,2]
[315392812,1709005840661,-1453.06,0.00019452,2]
[315392813,1709005840671,-502.97392599,0.00019452,2]
[315392814,1709005840680,-500.0,0.00019452,2]
[315392815,1709005840690,-945.83,0.00019452,2]
[315392816,1709005840699,-500.0,0.00019452,2]
[315392817,1709005840708,-500.0,0.00019452,2]
[315392818,1709005840847,-500.0,0.00019452,2]
[315392819,1709005840861,-503.73065665,0.00019452,2]
[315392820,1709005840871,-587.8,0.00019452,2]
[315392821,1709005840880,-585.33,0.00019452,2]
[315392822,1709005840889,-500.0,0.00019452,2]
[315392823,1709005840899,-1393.67,0.00019452,2]
[315392824,1709005840907,-501.35547942,0.00019452,2]
[315392825,1709005840916,-9825.67,0.00019452,2]
[315392826,1709005840926,-500.0,0.00019452,2]
[315392827,1709005840935,-500.0,0.00019452,2]
[315392828,1709005840945,-500.0,0.00019452,2]
[315392830,1709005840954,-500.0,0.00019452,2]
[315392832,1709005840963,-500.0,0.00019452,2]
[315392833,1709005840972,-581.55260075,0.00019452,2]
[315392834,1709005840982,-2341.16,0.00019452,2]
[315392835,1709005840991,-747.0,0.00019452,2]
[315392836,1709005841000,-3179.82,0.00019452,2]
[315392837,1709005841009,-2473.14,0.00019452,2]
[315392838,1709005841019,-507.4,0.00019452,2]
[315392840,1709005841028,-500.0,0.00019452,2]
[315392842,1709005841036,-544.99348939,0.00019452,2]
[315392844,1709005841046,-1832.08,0.00019452,2]
[315392845,1709005841055,-500.0,0.00019452,2]
[315392846,1709005841065,-500.0,0.00019452,2]
[315392847,1709005841074,-443.10422866,0.00019452,2]
[315392848,1709005841083,-502.01239296,0.00019452,2]
[315392850,1709005841092,-500.0,0.00019452,2]
[315392852,1709005841102,-501.29042956,0.00019452,2]
[315392853,1709005841111,-494.85355284,0.00019452,2]
[315392854,1709005841120,-1002.42085392,0.00019452,2]
[315392855,1709005841129,-500.0,0.00019452,2]
[315392856,1709005841138,-500.0,0.00019452,2]
[315392857,1709005841147,-500.0,0.00019452,2]
[315392858,1709005841156,-500.0,0.00019452,2]
[315392859,1709005841165,-500.0,0.00019452,2]
[315392860,1709005841175,-237.22654352,0.00019452,2]
[315392861,1709005841183,-2199.37,0.00019452,2]
[315392862,1709005841193,-500.0,0.00019452,2]
[315392863,1709005841202,-230.19847541,0.00019452,2]
[315392864,1709005841211,-500.0,0.00019452,2]
[315392865,1709005841219,-500.0,0.00019452,2]
[315392866,1709005841228,-226.05511992,0.00019452,2]
[315392868,1709005841238,-17015.61,0.00019452,2]
[315392869,1709005841247,-500.0,0.00019452,2]
[315392870,1709005841256,-500.0,0.00019452,2]
[315392871,1709005841266,-500.0,0.00019452,2]
[315392872,1709005841275,-500.77783376,0.00019452,2]
[315392873,1709005841285,-549.59387891,0.00019452,2]
[315392874,1709005841294,-504.40324197,0.00019452,2]
[315392875,1709005841304,-1945.26,0.00019452,2]
[315392876,1709005841313,-646.16620991,0.00019452,2]
[315392877,1709005841323,-500.0,0.00019452,2]
[315392878,1709005841332,-510.03816746,0.00019452,2]
[315392879,1709005841341,-479.74109791,0.00019452,2]
[315392880,1709005841351,-500.0,0.00019452,2]
[315392881,1709005841360,-500.0,0.00019452,2]
[315392882,1709005841370,-500.0,0.00019452,2]
[315392883,1709005841379,-1111.23,0.00019452,2]
[315392884,1709005841389,-500.91730771,0.00019452,2]
[315392885,1709005841398,-574.95,0.00019452,2]
[315392886,1709005841407,-500.0,0.00019452,2]
[315392887,1709005841417,-6582.67,0.00019452,2]
[315392888,1709005841427,-586.20253158,0.00019452,2]
[315392889,1709005841435,-500.0,0.00019452,2]
[315392890,1709005841445,-1818.9,0.00019452,2]
[315392891,1709005841455,-3279.01,0.00019452,2]
[315392892,1709005841464,-505.54703961,0.00019452,2]
[315392893,1709005841473,-410.10016763,0.00019452,2]
[315392894,1709005841482,-500.0,0.00019452,2]
[315392895,1709005841491,-500.0,0.00019452,2]
[315392896,1709005841500,-16501.42,0.00019452,2]
[315392897,1709005841510,-500.0,0.00019452,2]
[315392898,1709005841520,-500.0,0.00019452,2]
[315392899,1709005841529,-848.4,0.00019452,2]
[315392900,1709005841538,-501.11795405,0.00019452,2]
[315392901,1709005841550,-2657.57,0.00019452,2]
[315392902,1709005841559,-407.92151327,0.00019452,2]
[315392903,1709005841569,-500.0,0.00019452,2]
[315392904,1709005841578,-500.0,0.00019452,2]
[315392905,1709005841587,-3531.35,0.00019452,2]
[315392906,1709005841596,-500.0,0.00019452,2]
[315392907,1709005841605,-2841.18,0.00019452,2]
[315392908,1709005841614,-503.97375337,0.00019452,2]
[315392909,1709005841623,-524.20214721,0.00019452,2]
[315392910,1709005841632,-941.45,0.00019452,2]
[315392911,1709005841641,-1479.66321268,0.00019626,2]
[315392912,1709005841651,-166.666666,0.00019627,2]
[315392913,1709005841660,-1294.1471236,0.00019716,2]
[315392914,1709005841670,-746.12,0.00019725,2]
[315392915,1709005841680,-746.12,0.00019725,2]
[315392916,1709005841689,-500.0,0.00019726,2]
[315392917,1709005841698,-613.32,0.00019726,2]
[315392918,1709005841707,-1021.92,0.00019726,2]
[315392919,1709005841716,-500.0,0.00019726,2]
[315392920,1709005841724,-1168.45,0.00019726,2]
[315392921,1709005841733,-508.29,0.00019726,2]
[315392922,1709005841743,-500.0,0.00019726,2]
[315392923,1709005841753,-1815.24,0.00019726,2]
[315392924,1709005841762,-634.77,0.00019726,2]
[315392925,1709005841774,-623.01471876,0.00019726,2]
[315392926,1709005841784,-500.0,0.00019726,2]
[315392927,1709005841793,-500.0,0.00019726,2]
[315392928,1709005841802,-500.0,0.00019726,2]
[315392929,1709005841812,-500.0,0.00019726,2]
[315392930,1709005841822,-500.0,0.00019726,2]
[315392931,1709005841832,-1080.31,0.00019726,2]
[315392932,1709005841841,-500.0,0.00019726,2]
[315392933,1709005841852,-500.0,0.00019726,2]
[315392934,1709005841862,-500.0,0.00019726,2]
[315392935,1709005841871,-1726.24,0.00019726,2]
[315392936,1709005841880,-500.0,0.00019726,2]
[315392937,1709005841888,-500.0,0.00019726,2]
[315392938,1709005841897,-500.0,0.00019726,2]
[315392939,1709005841906,-502.73428054,0.00019726,2]
[315392940,1709005841915,-1398.22,0.00019726,2]
[315392941,1709005841924,-500.0,0.00019726,2]
[315392942,1709005841932,-500.0,0.00019726,2]
[315392943,1709005841941,-500.0,0.00019726,2]
[315392944,1709005841950,-500.0,0.00019726,2]
[315392945,1709005841960,-1219.33,0.00019726,2]
[315392946,1709005841969,-500.0,0.00019726,2]
[315392947,1709005841979,-500.0,0.00019726,2]
[315392948,1709005841988,-1245.29,0.00019726,2]
[315392949,1709005841997,-500.0,0.00019726,2]
[315392950,1709005842007,-500.0,0.00019726,2]
[315392951,1709005842016,-501.79848938,0.00019726,2]
[315392952,1709005842025,-500.0,0.00019726,2]
[315392953,1709005842035,-816.34,0.00019726,2]
[315392954,1709005842044,-1453.06,0.00019726,2]
[315392955,1709005842053,-500.0,0.00019726,2]
[315392956,1709005842062,-945.83,0.00019726,2]
[315392957,1709005842073,-500.0,0.00019726,2]
[315392958,1709005842083,-611.56698539,0.00019726,2]
[315392959,1709005842093,-500.0,0.00019726,2]
[315392960,1709005842102,-587.8,0.00019726,2]
[315392961,1709005842112,-585.33,0.00019726,2]
[315392962,1709005842121,-1393.67,0.00019726,2]
[315392963,1709005842130,-9825.67,0.00019726,2]
[315392964,1709005842140,-500.0,0.00019726,2]
[315392965,1709005842150,-500.0,0.00019726,2]
[315392966,1709005842159,-500.0,0.00019726,2]
[315392967,1709005842169,-500.0,0.00019726,2]
[315392968,1709005842178,-747.0,0.00019726,2]
[315392969,1709005842187,-2341.16,0.00019726,2]
[315392970,1709005842196,-3179.82,0.00019726,2]
[315392971,1709005842206,-2473.14,0.00019726,2]
[315392972,1709005842215,-507.4,0.00019726,2]
[315392973,1709005842224,-500.0,0.00019726,2]
[315392974,1709005842233,-1832.08,0.00019726,2]
[315392975,1709005842243,-500.0,0.00019726,2]
[315392976,1709005842252,-500.0,0.00019726,2]
[315392977,1709005842261,-500.0,0.00019726,2]
[315392978,1709005842270,-500.0,0.00019726,2]
[315392979,1709005842279,-500.0,0.00019726,2]
[315392980,1709005842290,-500.0,0.00019726,2]
[315392981,1709005842299,-500.0,0.00019726,2]
[315392982,1709005842309,-2199.37,0.00019726,2]
[315392984,1709005842319,-502.32182453,0.00019726,2]
[315392986,1709005842328,-500.0,0.00019726,2]
[315392987,1709005842338,-500.0,0.00019726,2]
[315392988,1709005842347,-17015.61,0.00019726,2]
[315392989,1709005842356,-500.0,0.00019726,2]
[315392990,1709005842366,-500.0,0.00019726,2]
[315392991,1709005842376,-186.52193243,0.00019726,2]
[315392992,1709005842385,-1945.26,0.00019726,2]
[315392993,1709005842394,-500.0,0.00019726,2]
[315392994,1709005842404,-500.0,0.00019726,2]
[315392995,1709005842413,-411.54897742,0.00019726,2]
[315392996,1709005842422,-500.0,0.00019726,2]
[315392997,1709005842432,-1111.23,0.00019726,2]
[315392998,1709005842442,-574.95,0.00019726,2]
[315392999,1709005842452,-595.5088898,0.00019726,2]
[315393000,1709005842462,-6582.67,0.00019726,2]
[315393001,1709005842471,-1818.9,0.00019726,2]
[315393002,1709005842480,-3279.01,0.00019726,2]
[315393003,1709005842489,-500.0,0.00019726,2]
[315393004,1709005842499,-173.08101295,0.00019726,2]
[315393005,1709005842508,-16501.42,0.00019726,2]
[315393006,1709005842517,-500.0,0.00019726,2]
[315393007,1709005842527,-500.0,0.00019726,2]
[315393008,1709005842536,-848.4,0.00019726,2]
[315393009,1709005842545,-2657.57,0.00019726,2]
[315393010,1709005842554,-500.0,0.00019726,2]
[315393011,1709005842563,-500.0,0.00019726,2]
[315393012,1709005842574,-3531.35,0.00019726,2]
[315393013,1709005842583,-2841.18,0.00019726,2]
[315393014,1709005842592,-1479.66321268,0.000199,2]
[315393015,1709005842601,-1596.90371543,0.000199,2]
[315393016,1709005842610,-188.33877201,0.00019998,2]
[315393017,1709005842619,-6507.8,0.00019999,2]
[315393018,1709005842628,-746.12,0.00019999,2]
[315393019,1709005842637,-746.12,0.00019999,2]
[315393020,1709005842647,-746.12,0.00019999,2]
[315393021,1709005842657,-746.12,0.00019999,2]
[315393022,1709005842666,-500.0,0.00019999,2]
[315393023,1709005842674,-500.0,0.00019999,2]
[315393024,1709005842684,-233.96596922,0.00019999,2]
[315393025,1709005842693,-500.0,0.00019999,2]
[315393026,1709005842701,-500.0,0.00019999,2]
[315393027,1709005842710,-500.0,0.00019999,2]
[315393028,1709005842719,-500.0,0.00019999,2]
[315393029,1709005842729,-500.0,0.00019999,2]
[315393030,1709005842738,-269.30736703,0.00019999,2]
[315393031,1709005842747,-500.0,0.00019999,2]
[315393032,1709005842756,-500.0,0.00019999,2]
[315393033,1709005842766,-500.0,0.00019999,2]
[315393034,1709005842779,-500.0,0.00019999,2]
[315393035,1709005842787,-500.0,0.00019999,2]
[315393036,1709005842798,-500.0,0.00019999,2]
[315393037,1709005842806,-500.0,0.00019999,2]
[315393038,1709005842815,-500.0,0.00019999,2]
[315393039,1709005842825,-500.0,0.00019999,2]
[315393040,1709005842833,-500.0,0.00019999,2]
[315393041,1709005842842,-500.0,0.00019999,2]
[315393042,1709005842854,-500.0,0.00019999,2]
[315393043,1709005842865,-500.0,0.00019999,2]
[315393044,1709005842885,-500.0,0.00019999,2]
[315393045,1709005842895,-500.0,0.00019999,2]
[315393046,1709005842905,-500.0,0.00019999,2]
[315393047,1709005842914,-500.0,0.00019999,2]
[315393048,1709005842923,-500.0,0.00019999,2]
[315393049,1709005842932,-500.0,0.00019999,2]
[315393050,1709005842943,-500.0,0.00019999,2]
[315393051,1709005842952,-500.0,0.00019999,2]
[315393052,1709005842963,-215.786596,0.00019999,2]
[315393053,1709005842972,-500.0,0.00019999,2]
[315393054,1709005842982,-500.0,0.00019999,2]
[315393055,1709005842991,-500.0,0.00019999,2]
[315393056,1709005843000,-500.0,0.00019999,2]
[315393057,1709005843010,-500.0,0.00019999,2]
[315393058,1709005843020,-500.0,0.00019999,2]
[315393059,1709005843029,-500.0,0.00019999,2]
[315393060,1709005843040,-500.0,0.00019999,2]
[315393061,1709005843049,-500.0,0.00019999,2]
[315393062,1709005843061,-500.0,0.00019999,2]
[315393063,1709005843072,-500.0,0.00019999,2]
[315393064,1709005843082,-500.0,0.00019999,2]
[315393065,1709005843091,-500.0,0.00019999,2]
[315393066,1709005843101,-500.0,0.00019999,2]
[315393067,1709005843112,-500.0,0.00019999,2]
[315393068,1709005843123,-500.0,0.00019999,2]
[315393069,1709005843134,-500.0,0.00019999,2]
[315393070,1709005843145,-500.0,0.00019999,2]
[315393071,1709005843155,-500.0,0.00019999,2]
[315393072,1709005843165,-500.0,0.00019999,2]
[315393073,1709005843174,-500.0,0.00019999,2]
[315393074,1709005843184,-365.54447169,0.00019999,2]
[315393075,1709005843194,-500.0,0.00019999,2]
[315393076,1709005843204,-500.0,0.00019999,2]
[315393077,1709005843214,-500.0,0.00019999,2]
[315393078,1709005843223,-500.0,0.00019999,2]
[315393079,1709005843233,-500.0,0.00019999,2]
[315393080,1709005843243,-500.0,0.00019999,2]
[315393081,1709005843254,-650.0,0.00019999,2]
[315393082,1709005843265,-500.0,0.00019999,2]
[315393083,1709005843277,-500.0,0.00019999,2]
[315393084,1709005843287,-500.0,0.00019999,2]
[315393085,1709005843296,-500.0,0.00019999,2]
[315393086,1709005843306,-88324.48130165,0.0002,2]
[315393087,1709005843317,-500.0,0.0002,2]
[315393088,1709005843329,-613.32,0.0002,2]
[315393089,1709005843339,-1021.92,0.0002,2]
[315393090,1709005843349,-500.0,0.0002,2]
[315393091,1709005843359,-1168.45,0.0002,2]
[315393092,1709005843369,-508.29,0.0002,2]
[315393093,1709005843379,-1815.24,0.0002,2]
[315393094,1709005843388,-634.77,0.0002,2]
[315393095,1709005843400,-500.0,0.0002,2]
[315393096,1709005843410,-500.0,0.0002,2]
[315393097,1709005843420,-500.0,0.0002,2]
[315393098,1709005843429,-563.15,0.0002,2]
[315393099,1709005843439,-500.0,0.0002,2]
[315393100,1709005843449,-1080.31,0.0002,2]
[315393101,1709005843459,-500.0,0.0002,2]
[315393102,1709005843468,-500.0,0.0002,2]
[315393103,1709005843606,-500.0,0.0002,2]
[315393104,1709005843616,-1726.24,0.0002,2]
[315393105,1709005843626,-503.46406997,0.0002,2]
[315393106,1709005843636,-502.56998248,0.0002,2]
[315393107,1709005843646,-602.67375131,0.0002,2]
[315393108,1709005843655,-1398.22,0.0002,2]
[315393109,1709005843665,-500.0,0.0002,2]
[315393110,1709005843675,-500.0,0.0002,2]
[315393111,1709005843685,-500.0,0.0002,2]
[315393112,1709005843696,-500.0,0.0002,2]
[315393113,1709005843706,-1219.33,0.0002,2]
[315393114,1709005843716,-506.05612809,0.0002,2]
[315393115,1709005843725,-1245.29,0.0002,2]
[315393116,1709005843734,-500.0,0.0002,2]
[315393117,1709005843745,-500.0,0.0002,2]
[315393118,1709005843756,-503.19982376,0.0002,2]
[315393119,1709005843767,-816.34,0.0002,2]
[315393120,1709005843778,-1453.06,0.0002,2]
[315393121,1709005843789,-500.0,0.0002,2]
[315393122,1709005843799,-945.83,0.0002,2]
[315393123,1709005843809,-551.28665408,0.0002,2]
[315393124,1709005843820,-624.64287442,0.0002,2]
[315393125,1709005843830,-587.8,0.0002,2]
[315393126,1709005843839,-585.33,0.0002,2]
[315393127,1709005843849,-10950.4,0.0002,2]
[315393128,1709005843858,-1393.67,0.0002,2]
[315393129,1709005843868,-9825.67,0.0002,2]
[315393130,1709005843877,-500.0,0.0002,2]
[315393131,1709005843886,-500.0,0.0002,2]
[315393132,1709005843895,-500.0,0.0002,2]
[315393133,1709005843905,-253.68558529,0.0002,2]
[315393134,1709005843914,-747.0,0.0002,2]
[315393135,1709005843923,-2341.16,0.0002,2]
[315393136,1709005843932,-3179.82,0.0002,2]
[315393137,1709005843941,-2473.14,0.0002,2]
[315393138,1709005843950,-507.4,0.0002,2]
[315393139,1709005843959,-500.0,0.0002,2]
[315393140,1709005843968,-1832.08,0.0002,2]
[315393141,1709005843978,-500.0,0.0002,2]
[315393142,1709005843987,-500.0,0.0002,2]
[315393143,1709005843996,-500.0,0.0002,2]
[315393144,1709005844006,-619.40839332,0.0002,2]
[315393145,1709005844015,-500.0,0.0002,2]
[315393146,1709005844024,-500.0,0.0002,2]
[315393147,1709005844033,-500.0,0.0002,2]
[315393148,1709005844042,-2199.37,0.0002,2]
[315393149,1709005844051,-500.0,0.0002,2]
[315393150,1709005844060,-500.0,0.0002,2]
[315393151,1709005844070,-17015.61,0.0002,2]
[315393152,1709005844080,-167.66596435,0.0002,2]
[315393153,1709005844089,-571.82653924,0.0002,2]
[315393154,1709005844099,-1945.26,0.0002,2]
[315393155,1709005844108,-500.0,0.0002,2]
[315393156,1709005844117,-500.0,0.0002,2]
[315393157,1709005844126,-500.0,0.0002,2]
[315393158,1709005844135,-1111.23,0.0002,2]
[315393159,1709005844144,-574.95,0.0002,2]
[315393160,1709005844153,-6582.67,0.0002,2]
[315393161,1709005844162,-1818.9,0.0002,2]
[315393162,1709005844172,-3279.01,0.0002,2]
[315393163,1709005844182,-151.69566936,0.0002,2]
[315393164,1709005844191,-500.0,0.0002,2]
[315393165,1709005844201,-16501.42,0.0002,2]
[315393166,1709005844211,-500.0,0.0002,2]
[315393167,1709005844220,-848.4,0.0002,2]
[315393168,1709005844229,-2657.57,0.0002,2]
[315393169,1709005844238,-500.0,0.0002,2]
[315393170,1709005844247,-3531.35,0.0002,2]
[315393172,1709005844256,-2841.18,0.0002,2]
[315393173,1709005844265,-1596.90371537,0.00020011,2]
[315393174,1709005844274,-166.666666,0.00020076,2]
[315393175,1709005844283,-175.5,0.000201,2]
[315393176,1709005844293,-153.0,0.00020118,2]
[315393177,1709005844302,-153.0,0.00020118,2]
[315393178,1709005844311,-1596.90371537,0.00020122,2]
[315393179,1709005844321,-50000.0,0.00020142,5]
[315393180,1709005844330,-50000.0,0.00020145,5]
[315393181,1709005844339,-746.12,0.00020146,2]
[315393182,1709005844349,-50000.0,0.00020147,5]
[315393183,1709005844359,-746.12,0.00020148,2]
[315393184,1709005844368,-746.12,0.00020148,2]
[315393185,1709005844377,-50000.0,0.00020149,5]
[315393186,1709005844386,-1479.66321268,0.00020173,2]
[315393187,1709005844395,-1596.90371537,0.00020233,2]
[315393188,1709005844404,-153.0,0.00020255,2]
[315393189,1709005844414,-153.0,0.00020255,2]
[315393190,1709005844423,-153.0,0.00020255,2]
[315393191,1709005844432,-154.2813426,0.00020255,2]
[315393192,1709005844442,-153.0,0.00020255,2]
[315393193,1709005844452,-306.0,0.00020255,2]
[315393194,1709005844462,-960.66404487,0.00020268,2]
[315393195,1709005844472,-746.12,0.00020272,2]
[315393197,1709005844483,-746.12,0.00020272,2]
[315393198,1709005844493,-500.0,0.00020273,2]
[315393199,1709005844503,-613.32,0.00020273,2]
[315393200,1709005844513,-1021.92,0.00020273,2]
[315393201,1709005844522,-500.0,0.00020273,2]
[315393202,1709005844532,-1168.45,0.00020273,2]
[315393203,1709005844541,-508.29,0.00020273,2]
[315393204,1709005844551,-1815.24,0.00020273,2]
[315393205,1709005844560,-634.77,0.00020273,2]
[315393206,1709005844571,-283.49549148,0.00020273,2]
[315393207,1709005844580,-500.0,0.00020273,2]
[315393208,1709005844591,-500.0,0.00020273,2]
[315393209,1709005844601,-500.0,0.00020273,2]
[315393210,1709005844610,-1080.31,0.00020273,2]
[315393211,1709005844620,-500.0,0.00020273,2]
[315393212,1709005844630,-500.0,0.00020273,2]
[315393213,1709005844639,-500.0,0.00020273,2]
[315393214,1709005844649,-1726.24,0.00020273,2]
[315393216,1709005844658,-1398.22,0.00020273,2]
[315393217,1709005844668,-500.0,0.00020273,2]
[315393220,1709005844677,-500.0,0.00020273,2]
[315393223,1709005844687,-500.0,0.00020273,2]
[315393225,1709005844696,-500.0,0.00020273,2]
[315393226,1709005844706,-1219.33,0.00020273,2]
[315393227,1709005844717,-1245.29,0.00020273,2]
[315393228,1709005844726,-500.0,0.00020273,2]
[315393229,1709005844735,-500.0,0.00020273,2]
[315393230,1709005844745,-816.34,0.00020273,2]
[315393231,1709005844755,-1453.06,0.00020273,2]
[315393232,1709005844765,-500.0,0.00020273,2]
[315393233,1709005844777,-945.83,0.00020273,2]
[315393234,1709005844787,-587.8,0.00020273,2]
[315393235,1709005844797,-585.33,0.00020273,2]
[315393236,1709005844806,-1393.67,0.00020273,2]
[315393237,1709005844819,-9825.67,0.00020273,2]
[315393238,1709005844829,-500.0,0.00020273,2]
[315393240,1709005844838,-403.67154212,0.00020273,2]
[315393242,1709005844848,-507.6639879,0.00020273,2]
[315393244,1709005844861,-747.0,0.00020273,2]
[315393246,1709005844871,-2341.16,0.00020273,2]
[315393247,1709005844881,-3179.82,0.00020273,2]
[315393248,1709005844890,-2473.14,0.00020273,2]
[315393249,1709005844900,-507.4,0.00020273,2]
[315393250,1709005844910,-632.64477132,0.00020273,2]
[315393251,1709005844920,-1832.08,0.00020273,2]
[315393252,1709005844930,-500.0,0.00020273,2]
[315393253,1709005844939,-502.3731827,0.00020273,2]
[315393254,1709005844950,-500.0,0.00020273,2]
[315393255,1709005844960,-500.0,0.00020273,2]
[315393256,1709005844970,-500.0,0.00020273,2]
[315393257,1709005844980,-2199.37,0.00020273,2]
[315393258,1709005844990,-500.0,0.00020273,2]
[315393260,1709005845000,-500.0,0.00020273,2]
[315393261,1709005845010,-17015.61,0.00020273,2]
[315393262,1709005845020,-1945.26,0.00020273,2]
[315393263,1709005845029,-177.38553899,0.00020273,2]
[315393264,1709005845039,-502.21773723,0.00020273,2]
[315393265,1709005845050,-500.0,0.00020273,2]
[315393266,1709005845060,-1111.23,0.00020273,2]
[315393267,1709005845071,-574.95,0.00020273,2]
[315393268,1709005845083,-6582.67,0.00020273,2]